Workbook

Sheet Detailed RGB
A1: R | B1: G | C1: B | D1: Brightness | E1: Red 13 (B2) | F1: Green 14 (L2) | G1: Blue 5 (R5) | N1: R | O1: G | P1: B | Q1: Brightness | R1: Red 13 (B2) | S1: Green 14 (L2) | T1: Blue 5 (R5)
A2: 255 | B2: 0 | C2: 0 | D2: 1 | E2: 2.95 | F2: 3.27 | G2: 3.27 | N2: 255 | O2: 128 | P2: 0 | Q2: 1 | R2: 2.86 | S2: 2.93 | T2: 3.17
D3: 25 | E3: 2.71 | F3: 3.27 | G3: 3.27 | Q3: 25 | R3: 2.63 | S3: 2.76 | T3: 3.17
D4: 50 | E4: 2.41 | F4: 3.27 | G4: 3.27 | Q4: 50 | R4: 2.34 | S4: 2.53 | T4: 3.16
D5: 75 | E5: 2.12 | F5: 3.27 | G5: 3.27 | Q5: 75 | R5: 2.05 | S5: 2.32 | T5: 3.15
D6: 90 | E6: 1.94 | F6: 3.27 | G6: 3.27 | Q6: 100 | R6: 1.77 | S6: 2.1 | T6: 3.15
D7: 100 | E7: 1.82 | F7: 3.27 | G7: 3.27 | Q7: 255 | R7: 0.01 | S7: 0.78 | T7: 3.12
D8: 255 | E8: 0.01 | F8: 3.27 | G8: 3.27
A16: R | B16: G | C16: B | D16: Brightness | E16: Red 13 (B2) | F16: Green 14 (L2) | G16: Blue 5 (R5) | N16: R | O16: G | P16: B | Q16: Brightness | R16: Red 13 (B2) | S16: Green 14 (L2) | T16: Blue 5 (R5)
A17: 255 | B17: 255 | C17: 0 | D17: 1 | E17: 3.04 | F17: 2.86 | G17: 3.17 | N17: 255 | O17: 0 | P17: 128 | Q17: 1 | R17: 2.86 | S17: 3.12 | T17: 3.1
D18: 25 | E18: 2.93 | F18: 2.63 | G18: 3.17 | Q18: 25 | R18: 2.63 | S18: 3.09 | T18: 3.04
D19: 50 | E19: 2.81 | F19: 2.34 | G19: 3.17 | Q19: 50 | R19: 2.34 | S19: 3.04 | T19: 2.97
D20: 75 | E20: 2.68 | F20: 2.05 | G20: 3.16 | Q20: 75 | R20: 2.05 | S20: 2.99 | T20: 2.9
D21: 100 | E21: 2.56 | F21: 1.77 | G21: 3.16 | Q21: 100 | R21: 1.77 | S21: 2.94 | T21: 2.84
D22: 255 | E22: 1.78 | F22: 0.01 | G22: 3.14 | Q22: 255 | R22: 0.01 | S22: 2.67 | T22: 2.42
A30: R | B30: G | C30: B | D30: Brightness | E30: Red 13 (B2) | F30: Green 14 (L2) | G30: Blue 5 (R5) | N30: R | O30: G | P30: B | Q30: Brightness | R30: Red 13 (B2) | S30: Green 14 (L2) | T30: Blue 5 (R5)
A31: 255 | B31: 255 | C31: 255 | D31: 1 | E31: 3.04 | F31: 2.86 | G31: 3.07 | N31: 255 | O31: 128 | P31: 128 | Q31: 1 | R31: 2.86 | S31: 2.93 | T31: 3.1
D32: 25 | E32: 2.94 | F32: 2.63 | G32: 3 | Q32: 25 | R32: 2.63 | S32: 2.76 | T32: 3.05
D33: 50 | E33: 2.81 | F33: 2.34 | G33: 2.91 | Q33: 50 | R33: 2.34 | S33: 2.54 | T33: 2.99
D34: 75 | E34: 2.69 | F34: 2.05 | G34: 2.82 | Q34: 75 | R34: 2.05 | S34: 2.32 | T34: 2.93
D35: 100 | E35: 2.56 | F35: 1.77 | G35: 2.73 | Q35: 100 | R35: 1.77 | S35: 2.1 | T35: 2.86
D36: 255 | E36: 1.79 | F36: 0.01 | G36: 2.16 | Q36: 255 | R36: 0.01 | S36: 0.76 | T36: 2.47
A44: R | B44: G | C44: B | D44: Brightness | E44: Red 13 (B2) | F44: Green 14 (L2) | G44: Blue 5 (R5) | N44: R | O44: G | P44: B | Q44: Brightness | R44: Red 13 (B2) | S44: Green 14 (L2) | T44: Blue 5 (R5)
A45: 0 | B45: 255 | C45: 0 | D45: 1 | E45: 3.27 | F45: 2.95 | G45: 3.27 | N45: 128 | O45: 255 | P45: 0 | Q45: 1 | R45: 3.11 | S45: 2.86 | T45: 3.17
D46: 25 | E46: 3.27 | F46: 2.71 | G46: 3.27 | Q46: 25 | R46: 3.06 | S46: 2.62 | T46: 3.17
D47: 50 | E47: 3.27 | F47: 2.41 | G47: 3.27 | Q47: 50 | R47: 3 | S47: 2.34 | T47: 3.16
D48: 75 | E48: 3.27 | F48: 2.11 | G48: 3.27 | Q48: 75 | R48: 2.94 | S48: 2.05 | T48: 3.16
D49: 100 | E49: 3.27 | F49: 1.82 | G49: 3.27 | Q49: 100 | R49: 2.87 | S49: 1.76 | T49: 3.16
D50: 255 | E50: 3.27 | F50: 0.01 | G50: 3.27 | Q50: 255 | R50: 2.51 | S50: 0.01 | T50: 3.15
A58: R | B58: G | C58: B | D58: Brightness | E58: Red 13 (B2) | F58: Green 14 (L2) | G58: Blue 5 (R5) | N58: R | O58: G | P58: B | Q58: Brightness | R58: Red 13 (B2) | S58: Green 14 (L2) | T58: Blue 5 (R5)
A59: 0 | B59: 255 | C59: 255 | D59: 1 | E59: 3.13 | F59: 2.86 | G59: 3.07 | N59: 255 | O59: 128 | P59: 255 | Q59: 1 | R59: 2.86 | S59: 2.93 | T59: 2.87
D60: 25 | E60: 3.1 | F60: 2.63 | G60: 3 | Q60: 25 | R60: 2.62 | S60: 2.74 | T60: 2.65
D61: 50 | E61: 3.05 | F61: 2.34 | G61: 2.9 | Q61: 50 | R61: 2.34 | S61: 2.52 | T61: 2.37
D62: 75 | E62: 3.01 | F62: 2.05 | G62: 2.8 | Q62: 75 | R62: 2.05 | S62: 2.29 | T62: 2.09
D63: 100 | E63: 2.97 | F63: 1.76 | G63: 2.71 | Q63: 100 | R63: 1.76 | S63: 2.06 | T63: 1.8
D64: 255 | E64: 2.71 | F64: 0.01 | G64: 2.12 | Q64: 255 | R64: 0.01 | S64: 0.67 | T64: 0.09
A72: R | B72: G | C72: B | D72: Brightness | E72: Red 13 (B2) | F72: Green 14 (L2) | G72: Blue 5 (R5) | N72: R | O72: G | P72: B | Q72: Brightness | R72: Red 13 (B2) | S72: Green 14 (L2) | T72: Blue 5 (R5)
A73: 0 | B73: 0 | C73: 255 | D73: 1 | E73: 3.27 | F73: 3.27 | G73: 2.95 | N73: 128 | O73: 255 | P73: 128 | Q73: 1 | R73: 3.11 | S73: 2.86 | T73: 3.15
D74: 25 | E74: 3.27 | F74: 3.27 | G74: 2.71 | Q74: 25 | R74: 3.06 | S74: 2.63 | T74: 3.14
D75: 50 | E75: 3.27 | F75: 3.27 | G75: 2.42 | Q75: 50 | R75: 3 | S75: 2.34 | T75: 3.11
D76: 75 | E76: 3.27 | F76: 3.27 | G76: 2.12 | Q76: 75 | R76: 2.94 | S76: 2.05 | T76: 3.09
D77: 100 | E77: 3.27 | F77: 3.27 | G77: 1.82 | Q77: 90 | R77: 2.9 | S77: 1.88 | T77: 3.08
D78: 255 | E78: 3.27 | F78: 3.27 | G78: 0.01 | Q78: 100 | R78: 2.88 | S78: 1.77 | T78: 3.07
Q79: 255 | R79: 2.51 | S79: 0.01 | T79: 2.93
A86: R | B86: G | C86: B | D86: Brightness | E86: Red 13 (B2) | F86: Green 14 (L2) | G86: Blue 5 (R5)
A87: 255 | B87: 0 | C87: 255 | D87: 1 | E87: 2.88 | F87: 3.12 | G87: 2.86
D88: 25 | E88: 2.66 | F88: 3.08 | G88: 2.63
D89: 50 | E89: 2.39 | F89: 3.03 | G89: 2.35
D90: 75 | E90: 2.12 | F90: 2.98 | G90: 2.06
D91: 100 | E91: 1.85 | F91: 2.92 | G91: 1.77
D92: 255 | E92: 0.19 | F92: 2.61 | G92: 0.01
D95: :

Sheet Detailed R
A1: Brightness 1 | B1: red | C1: green | D1: red V | M1: Brightness 255 | N1: red | O1: green | P1: red V
B2: 255 | C2: 0 | D2: 2.95 | N2: 255 | O2: 0 | P2: 0.01
B3: 255 | C3: 10 | D3: 2.95 | N3: 255 | O3: 10 | P3: 0.01
B4: 255 | C4: 20 | D4: 2.95 | N4: 255 | O4: 20 | P4: 0.01
B5: 255 | C5: 30 | D5: 2.95 | N5: 255 | O5: 30 | P5: 0.01
B6: 255 | C6: 32 | D6: 2.95 | N6: 255 | O6: 32 | P6: 0.01
B7: 255 | C7: 34 | D7: 2.95 | N7: 255 | O7: 34 | P7: 0.01
B8: 255 | C8: 36 | D8: 2.95 | N8: 255 | O8: 36 | P8: 0.01
B9: 255 | C9: 37 | D9: 2.86 | N9: 255 | O9: 37 | P9: 0.01
B10: 255 | C10: 38 | D10: 2.86 | N10: 255 | O10: 38 | P10: 0.01
B11: 255 | C11: 40 | D11: 2.86 | N11: 255 | O11: 40 | P11: 0.01
B12: 255 | C12: 50 | D12: 2.86 | N12: 255 | O12: 50 | P12: 0.01
B13: 255 | C13: 100 | D13: 2.86 | N13: 255 | O13: 140 | P13: 0.01
B14: 255 | C14: 110 | D14: 2.86 | N14: 255 | O14: 150 | P14: 0.01
B15: 255 | C15: 120 | D15: 2.86 | N15: 255 | O15: 152 | P15: 0.05
B16: 255 | C16: 130 | D16: 2.86 | N16: 255 | O16: 155 | P16: 0.05
B17: 255 | C17: 140 | D17: 2.86 | N17: 255 | O17: 157 | P17: 0.18
B18: 255 | C18: 150 | D18: 2.86 | N18: 255 | O18: 159 | P18: 0.19
B19: 255 | C19: 160 | D19: 2.89 | N19: 255 | O19: 160 | P19: 0.3
B20: 255 | C20: 170 | D20: 2.91 | N20: 255 | O20: 170 | P20: 0.54
B21: 255 | C21: 180 | D21: 2.93 | N21: 255 | O21: 180 | P21: 0.73
B22: 255 | C22: 190 | D22: 2.96 | N22: 255 | O22: 190 | P22: 0.99
B23: 255 | C23: 200 | D23: 2.97 | N23: 255 | O23: 200 | P23: 1.13
B24: 255 | C24: 210 | D24: 2.99 | N24: 255 | O24: 210 | P24: 1.27
B25: 255 | C25: 220 | D25: 3 | N25: 255 | O25: 220 | P25: 1.44
B26: 255 | C26: 230 | D26: 3.01 | N26: 255 | O26: 230 | P26: 1.53
B27: 255 | C27: 240 | D27: 3.02 | N27: 255 | O27: 240 | P27: 1.63
B28: 255 | C28: 255 | D28: 3.04 | N28: 255 | O28: 255 | P28: 1.78
A30: Brightness 1 | B30: red | C30: blue | D30: red V | M30: Brightness 255 | N30: red | O30: blue | P30: red V
B31: 255 | C31: 0 | D31: 2.95 | N31: 255 | O31: 0 | P31: 0.01
B32: 255 | C32: 10 | D32: 2.95 | N32: 255 | O32: 10 | P32: 0.01
B33: 255 | C33: 20 | D33: 2.95 | N33: 255 | O33: 27 | P33: 0.01
B34: 255 | C34: 30 | D34: 2.86 | N34: 255 | O34: 28 | P34: 0.01
B35: 255 | C35: 32 | D35: 2.86 | N35: 255 | O35: 30 | P35: 0.01
B36: 255 | C36: 34 | D36: 2.86 | N36: 255 | O36: 34 | P36: 0.01
B37: 255 | C37: 36 | D37: 2.86 | N37: 255 | O37: 150 | P37: 0.01
B38: 255 | C38: 37 | D38: 2.86 | N38: 255 | O38: 160 | P38: 0.01
B39: 255 | C39: 38 | D39: 2.86 | N39: 255 | O39: 170 | P39: 0.01
B40: 255 | C40: 40 | D40: 2.86 | N40: 255 | O40: 180 | P40: 0.01
B41: 255 | C41: 50 | D41: 2.86 | N41: 255 | O41: 190 | P41: 0.01
B42: 255 | C42: 100 | D42: 2.86 | N42: 255 | O42: 200 | P42: 0.01
B43: 255 | C43: 110 | D43: 2.86 | N43: 255 | O43: 210 | P43: 0.01
B44: 255 | C44: 120 | D44: 2.86 | N44: 255 | O44: 220 | P44: 0.01
B45: 255 | C45: 130 | D45: 2.86 | N45: 255 | O45: 230 | P45: 0.01
B46: 255 | C46: 140 | D46: 2.86 | N46: 255 | O46: 240 | P46: 0.01
B47: 255 | C47: 150 | D47: 2.86 | N47: 255 | O47: 245 | P47: 0.01
B48: 255 | C48: 160 | D48: 2.86 | N48: 255 | O48: 246 | P48: 0.01
B49: 255 | C49: 170 | D49: 2.86 | N49: 255 | O49: 247 | P49: 0.01
B50: 255 | C50: 180 | D50: 2.86 | N50: 255 | O50: 248 | P50: 0.01
B51: 255 | C51: 190 | D51: 2.86 | N51: 255 | O51: 249 | P51: 0.01
B52: 255 | C52: 200 | D52: 2.86 | N52: 255 | O52: 250 | P52: 0.06
B53: 255 | C53: 210 | D53: 2.86 | N53: 255 | O53: 251 | P53: 0.06
B54: 255 | C54: 220 | D54: 2.86 | N54: 255 | O54: 252 | P54: 0.06
B55: 255 | C55: 253 | D55: 2.87 | N55: 255 | O55: 253 | P55: 0.2
B56: 255 | C56: 254 | D56: 2.88 | N56: 255 | O56: 254 | P56: 0.2
B57: 255 | C57: 255 | D57: 2.88 | N57: 255 | O57: 255 | P57: 0.2
A59: Brightness 1 | B59: red | C59: green+blue | D59: red V | M59: Brightness 255 | N59: red | O59: green+blue | P59: red V | Q59: compare green | R59: diff
B60: 255 | C60: 0 | D60: 2.95 | N60: 255 | O60: 0 | P60: 0.01 | Q60: 0.01 | R60: =P60-Q60 -> 0
B61: 255 | C61: 10 | D61: 2.95 | N61: 255 | O61: 10 | P61: 0.01 | Q61: 0.01 | R61: =P61-Q61 -> 0
B62: 255 | C62: 19 | D62: 2.95 | N62: 255 | O62: 20 | P62: 0.01 | Q62: 0.01 | R62: =P62-Q62 -> 0
B63: 255 | C63: 20 | D63: 2.86 | N63: 255 | O63: 30 | P63: 0.01 | Q63: 0.01 | R63: =P63-Q63 -> 0
B64: 255 | C64: 30 | D64: 2.86 | N64: 255 | O64: 32 | P64: 0.01 | Q64: 0.01 | R64: =P64-Q64 -> 0
B65: 255 | C65: 34 | D65: 2.86 | N65: 255 | O65: 34 | P65: 0.01 | Q65: 0.01 | R65: =P65-Q65 -> 0
B66: 255 | C66: 36 | D66: 2.86 | N66: 255 | O66: 36 | P66: 0.01 | Q66: 0.01 | R66: =P66-Q66 -> 0
B67: 255 | C67: 37 | D67: 2.86 | N67: 255 | O67: 37 | P67: 0.01 | Q67: 0.01 | R67: =P67-Q67 -> 0
B68: 255 | C68: 38 | D68: 2.86 | N68: 255 | O68: 38 | P68: 0.01 | Q68: 0.01 | R68: =P68-Q68 -> 0
B69: 255 | C69: 40 | D69: 2.86 | N69: 255 | O69: 40 | P69: 0.01 | Q69: 0.01 | R69: =P69-Q69 -> 0
B70: 255 | C70: 50 | D70: 2.86 | N70: 255 | O70: 50 | P70: 0.01 | Q70: 0.01 | R70: =P70-Q70 -> 0
B71: 255 | C71: 100 | D71: 2.86 | N71: 255 | O71: 140 | P71: 0.01 | Q71: 0.01 | R71: =P71-Q71 -> 0
B72: 255 | C72: 120 | D72: 2.86 | N72: 255 | O72: 150 | P72: 0.01 | Q72: 0.01 | R72: =P72-Q72 -> 0
B73: 255 | C73: 130 | D73: 2.86 | N73: 255 | O73: 152 | P73: 0.09 | Q73: 0.05 | R73: =P73-Q73 -> 0.04
B74: 255 | C74: 140 | D74: 2.86 | N74: 255 | O74: 155 | P74: 0.15 | Q74: 0.05 | R74: =P74-Q74 -> 0.1
B75: 255 | C75: 150 | D75: 2.86 | N75: 255 | O75: 157 | P75: 0.24 | Q75: 0.18 | R75: =P75-Q75 -> 0.06
B76: 255 | C76: 155 | D76: 2.87 | N76: 255 | O76: 159 | P76: 0.24 | Q76: 0.19 | R76: =P76-Q76 -> 0.05
B77: 255 | C77: 158 | D77: 2.88 | N77: 255 | O77: 160 | P77: 0.3 | Q77: 0.3 | R77: =P77-Q77 -> 0
B78: 255 | C78: 160 | D78: 2.89 | N78: 255 | O78: 170 | P78: 0.57 | Q78: 0.54 | R78: =P78-Q78 -> 0.03
B79: 255 | C79: 170 | D79: 2.91 | N79: 255 | O79: 180 | P79: 0.82 | Q79: 0.73 | R79: =P79-Q79 -> 0.09
B80: 255 | C80: 180 | D80: 2.94 | N80: 255 | O80: 190 | P80: 1.02 | Q80: 0.99 | R80: =P80-Q80 -> 0.03
B81: 255 | C81: 190 | D81: 2.96 | N81: 255 | O81: 200 | P81: 1.14 | Q81: 1.13 | R81: =P81-Q81 -> 0.01
B82: 255 | C82: 200 | D82: 2.97 | N82: 255 | O82: 210 | P82: 1.31 | Q82: 1.27 | R82: =P82-Q82 -> 0.04
B83: 255 | C83: 230 | D83: 3.01 | N83: 255 | O83: 220 | P83: 1.44 | Q83: 1.44 | R83: =P83-Q83 -> 0
B84: 255 | C84: 240 | D84: 3.02 | N84: 255 | O84: 230 | P84: 1.55 | Q84: 1.53 | R84: =P84-Q84 -> 0.02
B85: 255 | C85: 250 | D85: 3.03 | N85: 255 | O85: 240 | P85: 1.66 | Q85: 1.63 | R85: =P85-Q85 -> 0.03
B86: 255 | C86: 255 | D86: 3.03 | N86: 255 | O86: 255 | P86: 1.79 | Q86: 1.78 | R86: =P86-Q86 -> 0.01
A89: Brightness red | B89: red DC | C89: green DC | D89: blue DC
A90: 0 | B90: 1 | C90: 1 | D90: 1
A91: 1 | B91: 0.9 | C91: 1 | D91: 1
A92: 50 | B92: 0.74 | C92: 1 | D92: 1
A93: 100 | B93: 0.55 | C93: 1 | D93: 1
A94: 150 | B94: 0.38 | C94: 1 | D94: 1
A95: 200 | B95: 0.2 | C95: 1 | D95: 1
A96: 210 | B96: 0.16 | C96: 1 | D96: 1
A97: 220 | B97: 0.13 | C97: 1 | D97: 1
A98: 230 | B98: 0.09 | C98: 1 | D98: 1
A99: 240 | B99: 0.05 | C99: 1 | D99: 1
A100: 250 | B100: 0.02 | C100: 1 | D100: 1
A101: 251 | B101: 0.02 | C101: 1 | D101: 1
A102: 252 | B102: 0.02 | C102: 1 | D102: 1
A103: 253 | B103: 0.01 | C103: 1 | D103: 1
A104: 254 | B104: 0.01 | C104: 1 | D104: 1
A105: 255 | B105: 0 | C105: 1 | D105: 1
A111: Brightness 1 | B111: red | C111: green | D111: red DC | E111: green DC | F111: blue DC | G111: green parabole | O111: Brightness 255 | P111: red | Q111: green | R111: red DC | S111: green DC | T111: blue DC
B112: 255 | C112: 1 | D112: 0.9 | E112: 1 | F112: 1 | G112: =(-0.000348968*C112*C112 - 0.00095174*C112 + 95.456)/100 -> 0.9545469929 | P112: 255 | Q112: 1 | R112: 0 | S112: 1 | T112: 1
B113: 255 | C113: 10 | D113: 0.9 | E113: 1 | F113: 1 | G113: =(-0.000348968*C113*C113 - 0.00095174*C113 + 95.456)/100 -> 0.954115858 | P113: 255 | Q113: 10 | R113: 0 | S113: 1 | T113: 1
B114: 255 | C114: 20 | D114: 0.9 | E114: 1 | F114: 1 | G114: =(-0.000348968*C114*C114 - 0.00095174*C114 + 95.456)/100 -> 0.95297378 | P114: 255 | Q114: 20 | R114: 0 | S114: 1 | T114: 1
B115: 255 | C115: 30 | D115: 0.9 | E115: 1 | F115: 1 | G115: =(-0.000348968*C115*C115 - 0.00095174*C115 + 95.456)/100 -> 0.951133766 | P115: 255 | Q115: 30 | R115: 0 | S115: 1 | T115: 1
B116: 255 | C116: 36 | D116: 0.9 | E116: 1 | F116: 1 | G116: =(-0.000348968*C116*C116 - 0.00095174*C116 + 95.456)/100 -> 0.9496947483 | P116: 255 | Q116: 36 | R116: 0 | S116: 1 | T116: 1
B117: 255 | C117: 37 | D117: 0.873 | E117: 0.949 | F117: 1 | G117: =(-0.000348968*C117*C117 - 0.00095174*C117 + 95.456)/100 -> 0.9494304843 | P117: 255 | Q117: 37 | R117: 0 | S117: 0.765 | T117: 1
B118: 255 | C118: 40 | D118: 0.873 | E118: 0.949 | F118: 1 | G118: =(-0.000348968*C118*C118 - 0.00095174*C118 + 95.456)/100 -> 0.948595816 | P118: 255 | Q118: 40 | R118: 0 | S118: 0.765 | T118: 1
B119: 255 | C119: 50 | D119: 0.873 | E119: 0.949 | F119: 1 | G119: =(-0.000348968*C119*C119 - 0.00095174*C119 + 95.456)/100 -> 0.94535993 | P119: 255 | Q119: 50 | R119: 0 | S119: 0.728 | T119: 1
B120: 255 | C120: 60 | D120: 0.873 | E120: 0.942 | F120: 1 | G120: =(-0.000348968*C120*C120 - 0.00095174*C120 + 95.456)/100 -> 0.941426108 | P120: 255 | Q120: 60 | R120: 0 | S120: 0.693 | T120: 1
B121: 255 | C121: 70 | D121: 0.873 | E121: 0.938 | F121: 1 | G121: =(-0.000348968*C121*C121 - 0.00095174*C121 + 95.456)/100 -> 0.93679435 | P121: 255 | Q121: 70 | R121: 0 | S121: 0.657 | T121: 1
B122: 255 | C122: 80 | D122: 0.873 | E122: 0.932 | F122: 1 | G122: =(-0.000348968*C122*C122 - 0.00095174*C122 + 95.456)/100 -> 0.931464656 | P122: 255 | Q122: 80 | R122: 0 | S122: 0.589 | T122: 1
B123: 255 | C123: 100 | D123: 0.873 | E123: 0.918 | F123: 1 | G123: =(-0.000348968*C123*C123 - 0.00095174*C123 + 95.456)/100 -> 0.91871146 | P123: 255 | Q123: 100 | R123: 0 | S123: 0.452 | T123: 1
B124: 255 | C124: 110 | D124: 0.873 | E124: 0.911 | F124: 1 | G124: =(-0.000348968*C124*C124 - 0.00095174*C124 + 95.456)/100 -> 0.911287958 | P124: 255 | Q124: 110 | R124: 0 | S124: 0.383 | T124: 1
B125: 255 | C125: 120 | D125: 0.873 | E125: 0.904 | F125: 1 | G125: =(-0.000348968*C125*C125 - 0.00095174*C125 + 95.456)/100 -> 0.90316652 | P125: 255 | Q125: 120 | R125: 0 | S125: 0.309 | T125: 1
B126: 255 | C126: 130 | D126: 0.873 | E126: 0.893 | F126: 1 | G126: =(-0.000348968*C126*C126 - 0.00095174*C126 + 95.456)/100 -> 0.894347146 | P126: 255 | Q126: 130 | R126: 0 | S126: 0.202 | T126: 1
B127: 255 | C127: 140 | D127: 0.873 | E127: 0.884 | F127: 1 | G127: =(-0.000348968*C127*C127 - 0.00095174*C127 + 95.456)/100 -> 0.884829836 | P127: 255 | Q127: 140 | R127: 0 | S127: 0.116 | T127: 1
B128: 255 | C128: 150 | D128: 0.873 | E128: 0.876 | F128: 1 | G128: =(-0.000348968*C128*C128 - 0.00095174*C128 + 95.456)/100 -> 0.87461459 | P128: 255 | Q128: 150 | R128: 0 | S128: 0.036 | T128: 1
B129: 255 | C129: 160 | D129: 0.882 | E129: 0.873 | F129: 1 | P129: 255 | Q129: 151 | R129: 0.015 | S129: 0 | T129: 1
B130: 255 | C130: 170 | D130: 0.889 | E130: 0.873 | F130: 1 | P130: 255 | Q130: 155 | R130: 0.015 | S130: 0 | T130: 1
B131: 255 | C131: 180 | D131: 0.895 | E131: 0.873 | F131: 1 | P131: 255 | Q131: 157 | R131: 0.054 | S131: 0 | T131: 1
B132: 255 | C132: 190 | D132: 0.903 | E132: 0.873 | F132: 1 | P132: 255 | Q132: 160 | R132: 0.0911 | S132: 0 | T132: 1
B133: 255 | C133: 200 | D133: 0.907 | E133: 0.873 | F133: 1 | P133: 255 | Q133: 170 | R133: 0.165 | S133: 0 | T133: 1
B134: 255 | C134: 210 | D134: 0.912 | E134: 0.873 | F134: 1 | P134: 255 | Q134: 180 | R134: 0.224 | S134: 0 | T134: 1
B135: 255 | C135: 220 | D135: 0.917 | E135: 0.873 | F135: 1 | P135: 255 | Q135: 190 | R135: 0.304 | S135: 0 | T135: 1
B136: 255 | C136: 230 | D136: 0.92 | E136: 0.873 | F136: 1 | P136: 255 | Q136: 220 | R136: 0.441 | S136: 0 | T136: 1
B137: 255 | C137: 240 | D137: 0.923 | E137: 0.873 | F137: 1 | P137: 255 | Q137: 240 | R137: 0.497 | S137: 0 | T137: 1
B138: 255 | C138: 255 | D138: 0.927 | E138: 0.873 | F138: 1 | P138: 255 | Q138: 255 | R138: 0.543 | S138: 0 | T138: 1
A140: Brightness 1 | B140: red | C140: blue | D140: red DC | E140: green DC | F140: blue DC | G140: blue parabole | O140: Brightness 255 | P140: red | Q140: blue | R140: red DC | S140: green DC | T140: blue DC | U140: RGB sum
B141: 255 | C141: 1 | D141: 0.9 | E141: 1 | F141: 1 | G141: =( -0.000163199*C141*C141 + 0.0045179*C141 + 96.7558 )/100 -> 0.967601547 | P141: 255 | Q141: 1 | R141: 0 | S141: 1 | T141: 1 | U141: =SUM(R141:T141) -> 2
B142: 255 | C142: 10 | D142: 0.9 | E142: 1 | F142: 1 | G142: =( -0.000163199*C142*C142 + 0.0045179*C142 + 96.7558 )/100 -> 0.967846591 | P142: 255 | Q142: 10 | R142: 0 | S142: 1 | T142: 1 | U142: =SUM(R142:T142) -> 2
B143: 255 | C143: 20 | D143: 0.9 | E143: 1 | F143: 1 | G143: =( -0.000163199*C143*C143 + 0.0045179*C143 + 96.7558 )/100 -> 0.967808784 | P143: 255 | Q143: 27 | R143: 0 | S143: 1 | T143: 1 | U143: =SUM(R143:T143) -> 2
B144: 255 | C144: 27 | D144: 0.9 | E144: 1 | F144: 1 | G144: =( -0.000163199*C144*C144 + 0.0045179*C144 + 96.7558 )/100 -> 0.9675881123 | P144: 255 | Q144: 28 | R144: 0 | S144: 0.822 | T144: 0.942 | U144: =SUM(R144:T144) -> 1.764
B145: 255 | C145: 28 | D145: 0.873 | E145: 0.955 | F145: 0.967 | G145: =( -0.000163199*C145*C145 + 0.0045179*C145 + 96.7558 )/100 -> 0.9675435318 | P145: 255 | Q145: 30 | R145: 0 | S145: 0.822 | T145: 0.942 | U145: =SUM(R145:T145) -> 1.764
B146: 255 | C146: 30 | D146: 0.873 | E146: 0.955 | F146: 0.967 | G146: =( -0.000163199*C146*C146 + 0.0045179*C146 + 96.7558 )/100 -> 0.967444579 | P146: 255 | Q146: 40 | R146: 0 | S146: 0.822 | T146: 0.935 | U146: =SUM(R146:T146) -> 1.757
B147: 255 | C147: 40 | D147: 0.873 | E147: 0.955 | F147: 0.966 | G147: =( -0.000163199*C147*C147 + 0.0045179*C147 + 96.7558 )/100 -> 0.966753976 | P147: 255 | Q147: 60 | R147: 0 | S147: 0.821 | T147: 0.91 | U147: =SUM(R147:T147) -> 1.731
B148: 255 | C148: 50 | D148: 0.873 | E148: 0.955 | F148: 0.965 | G148: =( -0.000163199*C148*C148 + 0.0045179*C148 + 96.7558 )/100 -> 0.965736975 | P148: 255 | Q148: 70 | R148: 0 | S148: 0.82 | T148: 0.898 | U148: =SUM(R148:T148) -> 1.718
B149: 255 | C149: 60 | D149: 0.873 | E149: 0.955 | F149: 0.964 | G149: =( -0.000163199*C149*C149 + 0.0045179*C149 + 96.7558 )/100 -> 0.964393576 | P149: 255 | Q149: 80 | R149: 0 | S149: 0.82 | T149: 0.873 | U149: =SUM(R149:T149) -> 1.693
B150: 255 | C150: 70 | D150: 0.873 | E150: 0.955 | F150: 0.963 | G150: =( -0.000163199*C150*C150 + 0.0045179*C150 + 96.7558 )/100 -> 0.962723779 | P150: 255 | Q150: 100 | R150: 0 | S150: 0.818 | T150: 0.822 | U150: =SUM(R150:T150) -> 1.64
B151: 255 | C151: 80 | D151: 0.873 | E151: 0.955 | F151: 0.96 | G151: =( -0.000163199*C151*C151 + 0.0045179*C151 + 96.7558 )/100 -> 0.960727584 | P151: 255 | Q151: 110 | R151: 0 | S151: 0.817 | T151: 0.796 | U151: =SUM(R151:T151) -> 1.613
B152: 255 | C152: 100 | D152: 0.873 | E152: 0.955 | F152: 0.955 | G152: =( -0.000163199*C152*C152 + 0.0045179*C152 + 96.7558 )/100 -> 0.955756 | P152: 255 | Q152: 120 | R152: 0 | S152: 0.816 | T152: 0.771 | U152: =SUM(R152:T152) -> 1.587
B153: 255 | C153: 110 | D153: 0.873 | E153: 0.955 | F153: 0.952 | G153: =( -0.000163199*C153*C153 + 0.0045179*C153 + 96.7558 )/100 -> 0.952780611 | P153: 255 | Q153: 130 | R153: 0 | S153: 0.814 | T153: 0.724 | U153: =SUM(R153:T153) -> 1.538
B154: 255 | C154: 120 | D154: 0.873 | E154: 0.954 | F154: 0.95 | G154: =( -0.000163199*C154*C154 + 0.0045179*C154 + 96.7558 )/100 -> 0.949478824 | P154: 255 | Q154: 140 | R154: 0 | S154: 0.813 | T154: 0.688 | U154: =SUM(R154:T154) -> 1.501
B155: 255 | C155: 130 | D155: 0.873 | E155: 0.954 | F155: 0.945 | G155: =( -0.000163199*C155*C155 + 0.0045179*C155 + 96.7558 )/100 -> 0.945850639 | P155: 255 | Q155: 150 | R155: 0 | S155: 0.811 | T155: 0.654 | U155: =SUM(R155:T155) -> 1.465
B156: 255 | C156: 140 | D156: 0.873 | E156: 0.954 | F156: 0.942 | G156: =( -0.000163199*C156*C156 + 0.0045179*C156 + 96.7558 )/100 -> 0.941896056 | P156: 255 | Q156: 160 | R156: 0 | S156: 0.809 | T156: 0.593 | U156: =SUM(R156:T156) -> 1.402
B157: 255 | C157: 150 | D157: 0.873 | E157: 0.954 | F157: 0.938 | G157: =( -0.000163199*C157*C157 + 0.0045179*C157 + 96.7558 )/100 -> 0.937615075 | P157: 255 | Q157: 170 | R157: 0 | S157: 0.807 | T157: 0.552 | U157: =SUM(R157:T157) -> 1.359
B158: 255 | C158: 160 | D158: 0.873 | E158: 0.954 | F158: 0.932 | G158: =( -0.000163199*C158*C158 + 0.0045179*C158 + 96.7558 )/100 -> 0.933007696 | P158: 255 | Q158: 180 | R158: 0 | S158: 0.805 | T158: 0.502 | U158: =SUM(R158:T158) -> 1.307
B159: 255 | C159: 170 | D159: 0.873 | E159: 0.954 | F159: 0.928 | G159: =( -0.000163199*C159*C159 + 0.0045179*C159 + 96.7558 )/100 -> 0.928073919 | P159: 255 | Q159: 190 | R159: 0 | S159: 0.802 | T159: 0.425 | U159: =SUM(R159:T159) -> 1.227
B160: 255 | C160: 180 | D160: 0.873 | E160: 0.954 | F160: 0.923 | G160: =( -0.000163199*C160*C160 + 0.0045179*C160 + 96.7558 )/100 -> 0.922813744 | P160: 255 | Q160: 200 | R160: 0 | S160: 0.8 | T160: 0.374 | U160: =SUM(R160:T160) -> 1.174
B161: 255 | C161: 190 | D161: 0.873 | E161: 0.953 | F161: 0.915 | G161: =( -0.000163199*C161*C161 + 0.0045179*C161 + 96.7558 )/100 -> 0.917227171 | P161: 255 | Q161: 210 | R161: 0 | S161: 0.798 | T161: 0.313 | U161: =SUM(R161:T161) -> 1.111
B162: 255 | C162: 200 | D162: 0.873 | E162: 0.953 | F162: 0.91 | G162: =( -0.000163199*C162*C162 + 0.0045179*C162 + 96.7558 )/100 -> 0.9113142 | P162: 255 | Q162: 220 | R162: 0 | S162: 0.794 | T162: 0.219 | U162: =SUM(R162:T162) -> 1.013
B163: 255 | C163: 210 | D163: 0.873 | E163: 0.953 | F163: 0.904 | G163: =( -0.000163199*C163*C163 + 0.0045179*C163 + 96.7558 )/100 -> 0.905074831 | P163: 255 | Q163: 230 | R163: 0 | S163: 0.792 | T163: 0.158 | U163: =SUM(R163:T163) -> 0.95
B164: 255 | C164: 220 | D164: 0.873 | E164: 0.953 | F164: 0.895 | G164: =( -0.000163199*C164*C164 + 0.0045179*C164 + 96.7558 )/100 -> 0.898509064 | P164: 255 | Q164: 248 | R164: 0 | S164: 0.787 | T164: 0.018 | U164: =SUM(R164:T164) -> 0.805
B165: 255 | C165: 230 | D165: 0.873 | E165: 0.953 | F165: 0.889 | G165: =( -0.000163199*C165*C165 + 0.0045179*C165 + 96.7558 )/100 -> 0.891616899 | P165: 255 | Q165: 249 | R165: 0.017 | S165: 0.788 | T165: 0 | U165: =SUM(R165:T165) -> 0.805
B166: 255 | C166: 240 | D166: 0.873 | E166: 0.952 | F166: 0.881 | G166: =( -0.000163199*C166*C166 + 0.0045179*C166 + 96.7558 )/100 -> 0.884398336 | P166: 255 | Q166: 250 | R166: 0.017 | S166: 0.788 | T166: 0 | U166: =SUM(R166:T166) -> 0.805
B167: 255 | C167: 255 | D167: 0.879 | E167: 0.952 | F167: 0.873 | G167: =( -0.000163199*C167*C167 + 0.0045179*C167 + 96.7558 )/100 -> 0.8729584953 | P167: 255 | Q167: 255 | R167: 0.058 | S167: 0.795 | T167: 0 | U167: =SUM(R167:T167) -> 0.853
AD168: Let’s check the RGB ratio
AD169: positive | AG169: ratio
A170: Brightness 1 | B170: red | C170: green | D170: blue | E170: red DC | F170: green DC | G170: blue DC | H170: green parabole | O170: red | P170: green | Q170: blue | R170: brightness | S170: red DC | T170: green DC | U170: blue DC | AC170: brightness | AD170: R | AE170: G | AF170: B | AG170: R | AH170: G | AI170: B | AJ170: sum
B171: 255 | C171: 1 | D171: 128 | E171: 0.873 | F171: 0.954 | G171: 0.947 | H171: =(-0.000348968*C171*C171 - 0.00095174*C171 + 95.456)/100 -> 0.9545469929 | O171: 255 | P171: 255 | Q171: 255 | R171: 1 | S171: 0.927 | T171: 0.873 | U171: 0.938 | AC171: 1 | AD171: =1-S171 -> 0.073 | AE171: =1-T171 -> 0.127 | AF171: =1-U171 -> 0.062 | AG171: =AD171/$AJ171 -> 0.2786259542 | AH171: =AE171/$AJ171 -> 0.4847328244 | AI171: =AF171/$AJ171 -> 0.2366412214 | AJ171: =SUM(AD171:AF171) -> 0.262
B172: 255 | C172: 10 | D172: 128 | E172: 0.873 | F172: 0.954 | G172: 0.947 | H172: =(-0.000348968*C172*C172 - 0.00095174*C172 + 95.456)/100 -> 0.954115858 | O172: 255 | P172: 255 | Q172: 255 | R172: 10 | S172: 0.92 | T172: 0.855 | U172: 0.933 | AC172: 10 | AD172: =1-S172 -> 0.08 | AE172: =1-T172 -> 0.145 | AF172: =1-U172 -> 0.067 | AG172: =AD172/$AJ172 -> 0.2739726027 | AH172: =AE172/$AJ172 -> 0.4965753425 | AI172: =AF172/$AJ172 -> 0.2294520548 | AJ172: =SUM(AD172:AF172) -> 0.292
B173: 255 | C173: 20 | D173: 128 | E173: 0.873 | F173: 0.952 | G173: 0.946 | H173: =(-0.000348968*C173*C173 - 0.00095174*C173 + 95.456)/100 -> 0.95297378 | O173: 255 | P173: 255 | Q173: 255 | R173: 20 | S173: 0.904 | T173: 0.82 | U173: 0.921 | AC173: 20 | AD173: =1-S173 -> 0.096 | AE173: =1-T173 -> 0.18 | AF173: =1-U173 -> 0.079 | AG173: =AD173/$AJ173 -> 0.2704225352 | AH173: =AE173/$AJ173 -> 0.5070422535 | AI173: =AF173/$AJ173 -> 0.2225352113 | AJ173: =SUM(AD173:AF173) -> 0.355
B174: 255 | C174: 30 | D174: 128 | E174: 0.873 | F174: 0.95 | G174: 0.947 | H174: =(-0.000348968*C174*C174 - 0.00095174*C174 + 95.456)/100 -> 0.951133766 | O174: 255 | P174: 255 | Q174: 255 | R174: 30 | S174: 0.889 | T174: 0.785 | U174: 0.91 | AC174: 30 | AD174: =1-S174 -> 0.111 | AE174: =1-T174 -> 0.215 | AF174: =1-U174 -> 0.09 | AG174: =AD174/$AJ174 -> 0.2668269231 | AH174: =AE174/$AJ174 -> 0.5168269231 | AI174: =AF174/$AJ174 -> 0.2163461538 | AJ174: =SUM(AD174:AF174) -> 0.416
B175: 255 | C175: 36 | D175: 128 | E175: 0.873 | F175: 0.949 | G175: 0.947 | H175: =(-0.000348968*C175*C175 - 0.00095174*C175 + 95.456)/100 -> 0.9496947483 | O175: 255 | P175: 255 | Q175: 255 | R175: 40 | S175: 0.874 | T175: 0.749 | U175: 0.899 | AC175: 40 | AD175: =1-S175 -> 0.126 | AE175: =1-T175 -> 0.251 | AF175: =1-U175 -> 0.101 | AG175: =AD175/$AJ175 -> 0.2635983264 | AH175: =AE175/$AJ175 -> 0.5251046025 | AI175: =AF175/$AJ175 -> 0.2112970711 | AJ175: =SUM(AD175:AF175) -> 0.478
B176: 255 | C176: 37 | D176: 128 | E176: 0.873 | F176: 0.948 | G176: 0.946 | H176: =(-0.000348968*C176*C176 - 0.00095174*C176 + 95.456)/100 -> 0.9494304843 | O176: 255 | P176: 255 | Q176: 255 | R176: 50 | S176: 0.859 | T176: 0.714 | U176: 0.887 | AC176: 50 | AD176: =1-S176 -> 0.141 | AE176: =1-T176 -> 0.286 | AF176: =1-U176 -> 0.113 | AG176: =AD176/$AJ176 -> 0.2611111111 | AH176: =AE176/$AJ176 -> 0.5296296296 | AI176: =AF176/$AJ176 -> 0.2092592593 | AJ176: =SUM(AD176:AF176) -> 0.54
B177: 255 | C177: 40 | D177: 128 | E177: 0.873 | F177: 0.948 | G177: 0.946 | H177: =(-0.000348968*C177*C177 - 0.00095174*C177 + 95.456)/100 -> 0.948595816 | O177: 255 | P177: 255 | Q177: 255 | R177: 60 | S177: 0.843 | T177: 0.679 | U177: 0.876 | AC177: 60 | AD177: =1-S177 -> 0.157 | AE177: =1-T177 -> 0.321 | AF177: =1-U177 -> 0.124 | AG177: =AD177/$AJ177 -> 0.2607973422 | AH177: =AE177/$AJ177 -> 0.5332225914 | AI177: =AF177/$AJ177 -> 0.2059800664 | AJ177: =SUM(AD177:AF177) -> 0.602
B178: 255 | C178: 50 | D178: 128 | E178: 0.873 | F178: 0.945 | G178: 0.946 | H178: =(-0.000348968*C178*C178 - 0.00095174*C178 + 95.456)/100 -> 0.94535993 | O178: 255 | P178: 255 | Q178: 255 | R178: 70 | S178: 0.828 | T178: 0.644 | U178: 0.864 | AC178: 70 | AD178: =1-S178 -> 0.172 | AE178: =1-T178 -> 0.356 | AF178: =1-U178 -> 0.136 | AG178: =AD178/$AJ178 -> 0.2590361446 | AH178: =AE178/$AJ178 -> 0.5361445783 | AI178: =AF178/$AJ178 -> 0.2048192771 | AJ178: =SUM(AD178:AF178) -> 0.664
B179: 255 | C179: 60 | D179: 128 | E179: 0.873 | F179: 0.94 | G179: 0.946 | H179: =(-0.000348968*C179*C179 - 0.00095174*C179 + 95.456)/100 -> 0.941426108 | O179: 255 | P179: 255 | Q179: 255 | R179: 80 | S179: 0.843 | T179: 0.679 | U179: 0.876 | AC179: 80 | AD179: =1-S179 -> 0.157 | AE179: =1-T179 -> 0.321 | AF179: =1-U179 -> 0.124 | AG179: =AD179/$AJ179 -> 0.2607973422 | AH179: =AE179/$AJ179 -> 0.5332225914 | AI179: =AF179/$AJ179 -> 0.2059800664 | AJ179: =SUM(AD179:AF179) -> 0.602
B180: 255 | C180: 70 | D180: 128 | E180: 0.873 | F180: 0.937 | G180: 0.947 | H180: =(-0.000348968*C180*C180 - 0.00095174*C180 + 95.456)/100 -> 0.93679435 | O180: 255 | P180: 255 | Q180: 255 | R180: 90 | S180: 0.843 | T180: 0.679 | U180: 0.876 | AC180: 90 | AD180: =1-S180 -> 0.157 | AE180: =1-T180 -> 0.321 | AF180: =1-U180 -> 0.124 | AG180: =AD180/$AJ180 -> 0.2607973422 | AH180: =AE180/$AJ180 -> 0.5332225914 | AI180: =AF180/$AJ180 -> 0.2059800664 | AJ180: =SUM(AD180:AF180) -> 0.602
B181: 255 | C181: 80 | D181: 128 | E181: 0.873 | F181: 0.931 | G181: 0.948 | H181: =(-0.000348968*C181*C181 - 0.00095174*C181 + 95.456)/100 -> 0.931464656 | O181: 255 | P181: 255 | Q181: 255 | R181: 100 | S181: 0.782 | T181: 0.538 | U181: 0.83 | AC181: 100 | AD181: =1-S181 -> 0.218 | AE181: =1-T181 -> 0.462 | AF181: =1-U181 -> 0.17 | AG181: =AD181/$AJ181 -> 0.2564705882 | AH181: =AE181/$AJ181 -> 0.5435294118 | AI181: =AF181/$AJ181 -> 0.2 | AJ181: =SUM(AD181:AF181) -> 0.85
B182: 255 | C182: 90 | D182: 128 | E182: 0.873 | F182: 0.926 | G182: 0.947 | H182: =(-0.000348968*C182*C182 - 0.00095174*C182 + 95.456)/100 -> 0.925437026 | O182: 255 | P182: 255 | Q182: 255 | R182: 110 | S182: 0.767 | T182: 0.503 | U182: 0.819 | AC182: 110 | AD182: =1-S182 -> 0.233 | AE182: =1-T182 -> 0.497 | AF182: =1-U182 -> 0.181 | AG182: =AD182/$AJ182 -> 0.2557628979 | AH182: =AE182/$AJ182 -> 0.5455543359 | AI182: =AF182/$AJ182 -> 0.1986827662 | AJ182: =SUM(AD182:AF182) -> 0.911
B183: 255 | C183: 110 | D183: 128 | E183: 0.873 | F183: 0.911 | G183: 0.948 | H183: =(-0.000348968*C183*C183 - 0.00095174*C183 + 95.456)/100 -> 0.911287958 | O183: 255 | P183: 255 | Q183: 255 | R183: 120 | S183: 0.751 | T183: 0.467 | U183: 0.808 | AC183: 120 | AD183: =1-S183 -> 0.249 | AE183: =1-T183 -> 0.533 | AF183: =1-U183 -> 0.192 | AG183: =AD183/$AJ183 -> 0.2556468172 | AH183: =AE183/$AJ183 -> 0.5472279261 | AI183: =AF183/$AJ183 -> 0.1971252567 | AJ183: =SUM(AD183:AF183) -> 0.974
B184: 255 | C184: 120 | D184: 128 | E184: 0.873 | F184: 0.903 | G184: 0.948 | H184: =(-0.000348968*C184*C184 - 0.00095174*C184 + 95.456)/100 -> 0.90316652 | O184: 255 | P184: 255 | Q184: 255 | R184: 130 | S184: 0.74 | T184: 0.441 | U184: 0.799 | AC184: 130 | AD184: =1-S184 -> 0.26 | AE184: =1-T184 -> 0.559 | AF184: =1-U184 -> 0.201 | AG184: =AD184/$AJ184 -> 0.2549019608 | AH184: =AE184/$AJ184 -> 0.5480392157 | AI184: =AF184/$AJ184 -> 0.1970588235 | AJ184: =SUM(AD184:AF184) -> 1.02
B185: 255 | C185: 130 | D185: 128 | E185: 0.873 | F185: 0.894 | G185: 0.948 | H185: =(-0.000348968*C185*C185 - 0.00095174*C185 + 95.456)/100 -> 0.894347146 | O185: 255 | P185: 255 | Q185: 255 | R185: 140 | S185: 0.724 | T185: 0.405 | U185: 0.788 | AC185: 140 | AD185: =1-S185 -> 0.276 | AE185: =1-T185 -> 0.595 | AF185: =1-U185 -> 0.212 | AG185: =AD185/$AJ185 -> 0.2548476454 | AH185: =AE185/$AJ185 -> 0.5493998153 | AI185: =AF185/$AJ185 -> 0.1957525392 | AJ185: =SUM(AD185:AF185) -> 1.083
B186: 255 | C186: 140 | D186: 128 | E186: 0.873 | F186: 0.884 | G186: 0.948 | H186: =(-0.000348968*C186*C186 - 0.00095174*C186 + 95.456)/100 -> 0.884829836 | O186: 255 | P186: 255 | Q186: 255 | R186: 150 | S186: 0.709 | T186: 0.37 | U186: 0.776 | AC186: 150 | AD186: =1-S186 -> 0.291 | AE186: =1-T186 -> 0.63 | AF186: =1-U186 -> 0.224 | AG186: =AD186/$AJ186 -> 0.2541484716 | AH186: =AE186/$AJ186 -> 0.5502183406 | AI186: =AF186/$AJ186 -> 0.1956331878 | AJ186: =SUM(AD186:AF186) -> 1.145
B187: 255 | C187: 150 | D187: 128 | E187: 0.873 | F187: 0.876 | G187: 0.949 | H187: =(-0.000348968*C187*C187 - 0.00095174*C187 + 95.456)/100 -> 0.87461459 | O187: 255 | P187: 255 | Q187: 255 | R187: 160 | S187: 0.694 | T187: 0.335 | U187: 0.765 | AC187: 160 | AD187: =1-S187 -> 0.306 | AE187: =1-T187 -> 0.665 | AF187: =1-U187 -> 0.235 | AG187: =AD187/$AJ187 -> 0.2537313433 | AH187: =AE187/$AJ187 -> 0.5514096186 | AI187: =AF187/$AJ187 -> 0.1948590381 | AJ187: =SUM(AD187:AF187) -> 1.206
B188: 255 | C188: 152 | D188: 128 | E188: 0.873 | F188: 0.873 | G188: 0.949 | O188: 255 | P188: 255 | Q188: 255 | R188: 170 | S188: 0.678 | T188: 0.3 | U188: 0.753 | AC188: 170 | AD188: =1-S188 -> 0.322 | AE188: =1-T188 -> 0.7 | AF188: =1-U188 -> 0.247 | AG188: =AD188/$AJ188 -> 0.2537431048 | AH188: =AE188/$AJ188 -> 0.5516154452 | AI188: =AF188/$AJ188 -> 0.19464145 | AJ188: =SUM(AD188:AF188) -> 1.269
B189: 255 | C189: 153 | D189: 128 | E189: 0.875 | F189: 0.873 | G189: 0.949 | O189: 255 | P189: 255 | Q189: 255 | R189: 180 | S189: 0.663 | T189: 0.264 | U189: 0.742 | AC189: 180 | AD189: =1-S189 -> 0.337 | AE189: =1-T189 -> 0.736 | AF189: =1-U189 -> 0.258 | AG189: =AD189/$AJ189 -> 0.2531930879 | AH189: =AE189/$AJ189 -> 0.5529676935 | AI189: =AF189/$AJ189 -> 0.1938392186 | AJ189: =SUM(AD189:AF189) -> 1.331
B190: 255 | C190: 160 | D190: 128 | E190: 0.881 | F190: 0.873 | G190: 0.951 | O190: 255 | P190: 255 | Q190: 255 | R190: 190 | S190: 0.648 | T190: 0.229 | U190: 0.731 | AC190: 190 | AD190: =1-S190 -> 0.352 | AE190: =1-T190 -> 0.771 | AF190: =1-U190 -> 0.269 | AG190: =AD190/$AJ190 -> 0.2528735632 | AH190: =AE190/$AJ190 -> 0.5538793103 | AI190: =AF190/$AJ190 -> 0.1932471264 | AJ190: =SUM(AD190:AF190) -> 1.392
B191: 255 | C191: 180 | D191: 128 | E191: 0.897 | F191: 0.873 | G191: 0.955 | O191: 255 | P191: 255 | Q191: 255 | R191: 200 | S191: 0.632 | T191: 0.194 | U191: 0.719 | AC191: 200 | AD191: =1-S191 -> 0.368 | AE191: =1-T191 -> 0.806 | AF191: =1-U191 -> 0.281 | AG191: =AD191/$AJ191 -> 0.2529209622 | AH191: =AE191/$AJ191 -> 0.55395189 | AI191: =AF191/$AJ191 -> 0.1931271478 | AJ191: =SUM(AD191:AF191) -> 1.455
B192: 255 | C192: 200 | D192: 128 | E192: 0.908 | F192: 0.873 | G192: 0.957 | O192: 255 | P192: 255 | Q192: 255 | R192: 210 | S192: 0.617 | T192: 0.159 | U192: 0.708 | AC192: 210 | AD192: =1-S192 -> 0.383 | AE192: =1-T192 -> 0.841 | AF192: =1-U192 -> 0.292 | AG192: =AD192/$AJ192 -> 0.2526385224 | AH192: =AE192/$AJ192 -> 0.5547493404 | AI192: =AF192/$AJ192 -> 0.1926121372 | AJ192: =SUM(AD192:AF192) -> 1.516
B193: 255 | C193: 210 | D193: 128 | E193: 0.913 | F193: 0.873 | G193: 0.959 | O193: 255 | P193: 255 | Q193: 255 | R193: 220 | S193: 0.602 | T193: 0.124 | U193: 0.697 | AC193: 220 | AD193: =1-S193 -> 0.398 | AE193: =1-T193 -> 0.876 | AF193: =1-U193 -> 0.303 | AG193: =AD193/$AJ193 -> 0.2523779328 | AH193: =AE193/$AJ193 -> 0.5554850983 | AI193: =AF193/$AJ193 -> 0.1921369689 | AJ193: =SUM(AD193:AF193) -> 1.577
B194: 255 | C194: 220 | D194: 128 | E194: 0.916 | F194: 0.873 | G194: 0.959 | O194: 255 | P194: 255 | Q194: 255 | R194: 230 | S194: 0.586 | T194: 0.088 | U194: 0.685 | AC194: 230 | AD194: =1-S194 -> 0.414 | AE194: =1-T194 -> 0.912 | AF194: =1-U194 -> 0.315 | AG194: =AD194/$AJ194 -> 0.252285192 | AH194: =AE194/$AJ194 -> 0.5557586837 | AI194: =AF194/$AJ194 -> 0.1919561243 | AJ194: =SUM(AD194:AF194) -> 1.641
B195: 255 | C195: 230 | D195: 128 | E195: 0.92 | F195: 0.873 | G195: 0.96 | O195: 255 | P195: 255 | Q195: 255 | R195: 240 | S195: 0.571 | T195: 0.053 | U195: 0.674 | AC195: 240 | AD195: =1-S195 -> 0.429 | AE195: =1-T195 -> 0.947 | AF195: =1-U195 -> 0.326 | AG195: =AD195/$AJ195 -> 0.2520564042 | AH195: =AE195/$AJ195 -> 0.5564042303 | AI195: =AF195/$AJ195 -> 0.1915393655 | AJ195: =SUM(AD195:AF195) -> 1.702
B196: 255 | C196: 240 | D196: 128 | E196: 0.923 | F196: 0.873 | G196: 0.961 | O196: 255 | P196: 255 | Q196: 255 | R196: 250 | S196: 0.556 | T196: 0.018 | U196: 0.662 | AC196: 250 | AD196: =1-S196 -> 0.444 | AE196: =1-T196 -> 0.982 | AF196: =1-U196 -> 0.338 | AG196: =AD196/$AJ196 -> 0.2517006803 | AH196: =AE196/$AJ196 -> 0.5566893424 | AI196: =AF196/$AJ196 -> 0.1916099773 | AJ196: =SUM(AD196:AF196) -> 1.764
B197: 255 | C197: 255 | D197: 128 | E197: 0.927 | F197: 0.873 | G197: 0.962 | O197: 255 | P197: 255 | Q197: 255 | R197: 255 | S197: 0.548 | T197: 0 | U197: 0.657 | AC197: 255 | AD197: =1-S197 -> 0.452 | AE197: =1-T197 -> 1 | AF197: =1-U197 -> 0.343 | AG197: =AD197/$AJ197 -> 0.251810585 | AH197: =AE197/$AJ197 -> 0.5571030641 | AI197: =AF197/$AJ197 -> 0.191086351 | AJ197: =SUM(AD197:AF197) -> 1.795
A200: Brightness 1 | B200: red | C200: green | D200: blue | E200: red DC | F200: green DC | G200: blue DC | H200: green parabole | I200: red parabole | Q200: Brightness 1 | R200: red | S200: green | T200: blue | U200: red DC | V200: green DC | W200: blue DC | X200: min | Y200: function
B201: 255 | C201: 1 | D201: 64 | E201: 0.873 | F201: 0.955 | G201: 0.963 | H201: =(-0.000348968*C201*C201 - 0.00095174*C201 + 95.456)/100 -> 0.9545469929 | Q201: 1 | R201: 255 | S201: 152 | T201: 64 | U201: 0.874 | V201: 0.873 | W201: 0.963 | X201: =MIN(U201:W201) -> 0.873 | Y201: =(87.6437 - 0.343701 * Q201) / 100 -> 0.87299999
B202: 255 | C202: 10 | D202: 64 | E202: 0.873 | F202: 0.954 | G202: 0.963 | H202: =(-0.000348968*C202*C202 - 0.00095174*C202 + 95.456)/100 -> 0.954115858 | Q202: 10 | R202: 255 | S202: 152 | T202: 64 | Y202: =(87.6437 - 0.343701 * Q202) / 100 -> 0.8420669
B203: 255 | C203: 20 | D203: 64 | E203: 0.873 | F203: 0.953 | G203: 0.963 | H203: =(-0.000348968*C203*C203 - 0.00095174*C203 + 95.456)/100 -> 0.95297378 | Q203: 20 | R203: 255 | S203: 152 | T203: 64 | Y203: =(87.6437 - 0.343701 * Q203) / 100 -> 0.8076968
B204: 255 | C204: 30 | D204: 64 | E204: 0.873 | F204: 0.951 | G204: 0.963 | H204: =(-0.000348968*C204*C204 - 0.00095174*C204 + 95.456)/100 -> 0.951133766 | Q204: 30 | R204: 255 | S204: 152 | T204: 64 | Y204: =(87.6437 - 0.343701 * Q204) / 100 -> 0.7733267
B205: 255 | C205: 36 | D205: 64 | E205: 0.873 | F205: 0.95 | G205: 0.963 | H205: =(-0.000348968*C205*C205 - 0.00095174*C205 + 95.456)/100 -> 0.9496947483 | Q205: 40 | R205: 255 | S205: 152 | T205: 64 | Y205: =(87.6437 - 0.343701 * Q205) / 100 -> 0.7389566
B206: 255 | C206: 37 | D206: 64 | E206: 0.873 | F206: 0.949 | G206: 0.963 | H206: =(-0.000348968*C206*C206 - 0.00095174*C206 + 95.456)/100 -> 0.9494304843 | Q206: 50 | R206: 255 | S206: 152 | T206: 64 | U206: 0.718 | V206: 0.714 | W206: 0.953 | X206: =MIN(U206:W206) -> 0.714 | Y206: =(87.6437 - 0.343701 * Q206) / 100 -> 0.7045865
B207: 255 | C207: 40 | D207: 64 | E207: 0.873 | F207: 0.948 | G207: 0.963 | H207: =(-0.000348968*C207*C207 - 0.00095174*C207 + 95.456)/100 -> 0.948595816 | Q207: 60 | R207: 255 | S207: 152 | T207: 64 | Y207: =(87.6437 - 0.343701 * Q207) / 100 -> 0.6702164
B208: 255 | C208: 50 | D208: 64 | E208: 0.873 | F208: 0.945 | G208: 0.963 | H208: =(-0.000348968*C208*C208 - 0.00095174*C208 + 95.456)/100 -> 0.94535993 | Q208: 70 | R208: 255 | S208: 152 | T208: 64 | Y208: =(87.6437 - 0.343701 * Q208) / 100 -> 0.6358463
B209: 255 | C209: 60 | D209: 64 | E209: 0.873 | F209: 0.941 | G209: 0.963 | H209: =(-0.000348968*C209*C209 - 0.00095174*C209 + 95.456)/100 -> 0.941426108 | Q209: 80 | R209: 255 | S209: 152 | T209: 64 | Y209: =(87.6437 - 0.343701 * Q209) / 100 -> 0.6014762
B210: 255 | C210: 70 | D210: 64 | E210: 0.873 | F210: 0.937 | G210: 0.963 | H210: =(-0.000348968*C210*C210 - 0.00095174*C210 + 95.456)/100 -> 0.93679435 | Q210: 90 | R210: 255 | S210: 152 | T210: 64 | Y210: =(87.6437 - 0.343701 * Q210) / 100 -> 0.5671061
B211: 255 | C211: 80 | D211: 64 | E211: 0.873 | F211: 0.932 | G211: 0.963 | H211: =(-0.000348968*C211*C211 - 0.00095174*C211 + 95.456)/100 -> 0.931464656 | Q211: 100 | R211: 255 | S211: 152 | T211: 64 | U211: 0.545 | V211: 0.538 | W211: 0.941 | X211: =MIN(U211:W211) -> 0.538 | Y211: =(87.6437 - 0.343701 * Q211) / 100 -> 0.532736
B212: 255 | C212: 90 | D212: 64 | E212: 0.873 | F212: 0.926 | G212: 0.963 | H212: =(-0.000348968*C212*C212 - 0.00095174*C212 + 95.456)/100 -> 0.925437026 | Q212: 110 | R212: 255 | S212: 152 | T212: 64 | Y212: =(87.6437 - 0.343701 * Q212) / 100 -> 0.4983659
... 345 more rows

Sheet Detailed G
A1: Brightness 1 | B1: green | C1: red | D1: green V | M1: Brightness 255 | N1: green | O1: red | P1: green V
B2: 255 | C2: 0 | D2: 2.94 | N2: 255 | O2: 0 | P2: 0.01
B3: 255 | C3: 1 | D3: 2.88 | N3: 255 | O3: 1 | P3: 0.01
B4: 255 | C4: 5 | D4: 2.88 | N4: 255 | O4: 20 | P4: 0.01
B5: 255 | C5: 10 | D5: 2.88 | N5: 255 | O5: 30 | P5: 0.01
B6: 255 | C6: 20 | D6: 2.88 | N6: 255 | O6: 32 | P6: 0.01
B7: 255 | C7: 30 | D7: 2.88 | N7: 255 | O7: 34 | P7: 0.01
B8: 255 | C8: 40 | D8: 2.88 | N8: 255 | O8: 36 | P8: 0.01
B9: 255 | C9: 45 | D9: 2.88 | N9: 255 | O9: 37 | P9: 0.01
B10: 255 | C10: 48 | D10: 2.88 | N10: 255 | O10: 38 | P10: 0.01
B11: 255 | C11: 49 | D11: 2.8 | N11: 255 | O11: 40 | P11: 0.01
B12: 255 | C12: 50 | D12: 2.8 | N12: 255 | O12: 50 | P12: 0.01
B13: 255 | C13: 100 | D13: 2.8 | N13: 255 | O13: 140 | P13: 0.01
B14: 255 | C14: 110 | D14: 2.8 | N14: 255 | O14: 150 | P14: 0.01
B15: 255 | C15: 120 | D15: 2.8 | N15: 255 | O15: 152 | P15: 0.01
B16: 255 | C16: 130 | D16: 2.8 | N16: 255 | O16: 155 | P16: 0.01
B17: 255 | C17: 140 | D17: 2.8 | N17: 255 | O17: 157 | P17: 0.01
B18: 255 | C18: 150 | D18: 2.8 | N18: 255 | O18: 159 | P18: 0.01
B19: 255 | C19: 160 | D19: 2.8 | N19: 255 | O19: 160 | P19: 0.01
B20: 255 | C20: 170 | D20: 2.8 | N20: 255 | O20: 170 | P20: 0.01
B21: 255 | C21: 180 | D21: 2.8 | N21: 255 | O21: 180 | P21: 0.01
B22: 255 | C22: 190 | D22: 2.8 | N22: 255 | O22: 190 | P22: 0.01
B23: 255 | C23: 200 | D23: 2.8 | N23: 255 | O23: 200 | P23: 0.01
B24: 255 | C24: 210 | D24: 2.8 | N24: 255 | O24: 210 | P24: 0.01
B25: 255 | C25: 220 | D25: 2.8 | N25: 255 | O25: 220 | P25: 0.01
B26: 255 | C26: 230 | D26: 2.8 | N26: 255 | O26: 230 | P26: 0.01
B27: 255 | C27: 240 | D27: 2.8 | N27: 255 | O27: 240 | P27: 0.01
B28: 255 | C28: 255 | D28: 2.8 | N28: 255 | O28: 255 | P28: 0.01
A30: Brightness 1 | B30: green | C30: blue | D30: green V | M30: Brightness 255 | N30: green | O30: blue | P30: green V
B31: 255 | C31: 0 | D31: 2.94 | N31: 255 | O31: 0 | P31: 0.01
B32: 255 | C32: 1 | D32: 2.94 | N32: 255 | O32: 10 | P32: 0.01
B33: 255 | C33: 10 | D33: 2.94 | N33: 255 | O33: 27 | P33: 0.01
B34: 255 | C34: 15 | D34: 2.94 | N34: 255 | O34: 28 | P34: 0.01
B35: 255 | C35: 20 | D35: 2.94 | N35: 255 | O35: 30 | P35: 0.01
B36: 255 | C36: 21 | D36: 2.94 | N36: 255 | O36: 34 | P36: 0.01
B37: 255 | C37: 23 | D37: 2.94 | N37: 255 | O37: 150 | P37: 0.01
B38: 255 | C38: 24 | D38: 2.86 | N38: 255 | O38: 160 | P38: 0.01
B39: 255 | C39: 50 | D39: 2.86 | N39: 255 | O39: 170 | P39: 0.01
B40: 255 | C40: 70 | D40: 2.86 | N40: 255 | O40: 180 | P40: 0.01
B41: 255 | C41: 100 | D41: 2.86 | N41: 255 | O41: 190 | P41: 0.01
B42: 255 | C42: 110 | D42: 2.86 | N42: 255 | O42: 200 | P42: 0.01
B43: 255 | C43: 120 | D43: 2.86 | N43: 255 | O43: 210 | P43: 0.01
B44: 255 | C44: 150 | D44: 2.86 | N44: 255 | O44: 220 | P44: 0.01
B45: 255 | C45: 200 | D45: 2.86 | N45: 255 | O45: 230 | P45: 0.01
B46: 255 | C46: 210 | D46: 2.86 | N46: 255 | O46: 240 | P46: 0.01
B47: 255 | C47: 220 | D47: 2.86 | N47: 255 | O47: 245 | P47: 0.01
B48: 255 | C48: 230 | D48: 2.86 | N48: 255 | O48: 246 | P48: 0.01
B49: 255 | C49: 240 | D49: 2.86 | N49: 255 | O49: 247 | P49: 0.01
B50: 255 | C50: 245 | D50: 2.86 | N50: 255 | O50: 248 | P50: 0.01
B51: 255 | C51: 249 | D51: 2.86 | N51: 255 | O51: 249 | P51: 0.01
B52: 255 | C52: 250 | D52: 2.86 | N52: 255 | O52: 250 | P52: 0.01
B53: 255 | C53: 251 | D53: 2.86 | N53: 255 | O53: 251 | P53: 0.01
B54: 255 | C54: 252 | D54: 2.86 | N54: 255 | O54: 252 | P54: 0.01
B55: 255 | C55: 253 | D55: 2.86 | N55: 255 | O55: 253 | P55: 0.01
B56: 255 | C56: 254 | D56: 2.86 | N56: 255 | O56: 254 | P56: 0.01
B57: 255 | C57: 255 | D57: 2.86 | N57: 255 | O57: 255 | P57: 0.01
A59: Brightness 1 | B59: green | C59: red+blue | D59: green V | M59: Brightness 255 | N59: green | O59: red+blue | P59: green V
B60: 255 | C60: 0 | D60: 2.94 | N60: 255 | O60: 0 | P60: 0.01
B61: 255 | C61: 10 | D61: 2.94 | N61: 255 | O61: 10 | P61: 0.01
B62: 255 | C62: 19 | D62: 2.94 | N62: 255 | O62: 20 | P62: 0.01
B63: 255 | C63: 21 | D63: 2.94 | N63: 255 | O63: 30 | P63: 0.01
B64: 255 | C64: 22 | D64: 2.86 | N64: 255 | O64: 32 | P64: 0.01
B65: 255 | C65: 34 | D65: 2.86 | N65: 255 | O65: 34 | P65: 0.01
B66: 255 | C66: 36 | D66: 2.86 | N66: 255 | O66: 36 | P66: 0.01
B67: 255 | C67: 37 | D67: 2.86 | N67: 255 | O67: 37 | P67: 0.01
B68: 255 | C68: 38 | D68: 2.86 | N68: 255 | O68: 38 | P68: 0.01
B69: 255 | C69: 40 | D69: 2.86 | N69: 255 | O69: 40 | P69: 0.01
B70: 255 | C70: 50 | D70: 2.86 | N70: 255 | O70: 50 | P70: 0.01
B71: 255 | C71: 100 | D71: 2.86 | N71: 255 | O71: 140 | P71: 0.01
B72: 255 | C72: 120 | D72: 2.86 | N72: 255 | O72: 150 | P72: 0.01
B73: 255 | C73: 130 | D73: 2.86 | N73: 255 | O73: 152 | P73: 0.01
B74: 255 | C74: 140 | D74: 2.86 | N74: 255 | O74: 155 | P74: 0.01
B75: 255 | C75: 150 | D75: 2.86 | N75: 255 | O75: 157 | P75: 0.01
B76: 255 | C76: 155 | D76: 2.86 | N76: 255 | O76: 159 | P76: 0.01
B77: 255 | C77: 158 | D77: 2.86 | N77: 255 | O77: 160 | P77: 0.01
B78: 255 | C78: 160 | D78: 2.86 | N78: 255 | O78: 170 | P78: 0.01
B79: 255 | C79: 170 | D79: 2.86 | N79: 255 | O79: 180 | P79: 0.01
B80: 255 | C80: 180 | D80: 2.86 | N80: 255 | O80: 190 | P80: 0.01
B81: 255 | C81: 190 | D81: 2.86 | N81: 255 | O81: 200 | P81: 0.01
B82: 255 | C82: 200 | D82: 2.86 | N82: 255 | O82: 210 | P82: 0.01
B83: 255 | C83: 230 | D83: 2.86 | N83: 255 | O83: 220 | P83: 0.01
B84: 255 | C84: 240 | D84: 2.86 | N84: 255 | O84: 230 | P84: 0.01
B85: 255 | C85: 250 | D85: 2.86 | N85: 255 | O85: 240 | P85: 0.01
B86: 255 | C86: 255 | D86: 2.86 | N86: 255 | O86: 255 | P86: 0.01

Sheet Detailed B
A1: Brightness 1 | B1: blue | C1: red | D1: blue V | M1: Brightness 255 | N1: blue | O1: red | P1: blue V
B2: 255 | C2: 0 | D2: 2.95 | N2: 255 | O2: 0 | P2: 0.01
B3: 255 | C3: 1 | D3: 2.95 | N3: 255 | O3: 1 | P3: 0.01
B4: 255 | C4: 5 | D4: 2.95 | N4: 255 | O4: 20 | P4: 0.01
B5: 255 | C5: 10 | D5: 2.95 | N5: 255 | O5: 30 | P5: 0.01
B6: 255 | C6: 20 | D6: 2.95 | N6: 255 | O6: 32 | P6: 0.01
B7: 255 | C7: 30 | D7: 2.95 | N7: 255 | O7: 34 | P7: 0.01
B8: 255 | C8: 40 | D8: 2.95 | N8: 255 | O8: 36 | P8: 0.01
B9: 255 | C9: 45 | D9: 2.95 | N9: 255 | O9: 37 | P9: 0.01
B10: 255 | C10: 48 | D10: 2.95 | N10: 255 | O10: 38 | P10: 0.01
B11: 255 | C11: 50 | D11: 2.95 | N11: 255 | O11: 40 | P11: 0.01
B12: 255 | C12: 57 | D12: 2.95 | N12: 255 | O12: 50 | P12: 0.01
B13: 255 | C13: 58 | D13: 2.86 | N13: 255 | O13: 140 | P13: 0.01
B14: 255 | C14: 80 | D14: 2.86 | N14: 255 | O14: 150 | P14: 0.01
B15: 255 | C15: 120 | D15: 2.86 | N15: 255 | O15: 152 | P15: 0.01
B16: 255 | C16: 130 | D16: 2.86 | N16: 255 | O16: 155 | P16: 0.01
B17: 255 | C17: 140 | D17: 2.86 | N17: 255 | O17: 157 | P17: 0.01
B18: 255 | C18: 150 | D18: 2.86 | N18: 255 | O18: 159 | P18: 0.01
B19: 255 | C19: 160 | D19: 2.86 | N19: 255 | O19: 160 | P19: 0.01
B20: 255 | C20: 170 | D20: 2.86 | N20: 255 | O20: 170 | P20: 0.01
B21: 255 | C21: 180 | D21: 2.86 | N21: 255 | O21: 180 | P21: 0.01
B22: 255 | C22: 190 | D22: 2.86 | N22: 255 | O22: 190 | P22: 0.01
B23: 255 | C23: 200 | D23: 2.86 | N23: 255 | O23: 200 | P23: 0.01
B24: 255 | C24: 210 | D24: 2.86 | N24: 255 | O24: 210 | P24: 0.01
B25: 255 | C25: 220 | D25: 2.86 | N25: 255 | O25: 220 | P25: 0.01
B26: 255 | C26: 230 | D26: 2.86 | N26: 255 | O26: 230 | P26: 0.01
B27: 255 | C27: 240 | D27: 2.86 | N27: 255 | O27: 240 | P27: 0.01
B28: 255 | C28: 255 | D28: 2.86 | N28: 255 | O28: 255 | P28: 0.01
A30: Brightness 1 | B30: blue | C30: green | D30: blue V | M30: Brightness 255 | N30: blue | O30: green | P30: blue V
B31: 255 | C31: 0 | D31: 2.95 | N31: 255 | O31: 0 | P31: 0.01
B32: 255 | C32: 1 | D32: 2.95 | N32: 255 | O32: 1 | P32: 0.01
B33: 255 | C33: 20 | D33: 2.95 | N33: 255 | O33: 100 | P33: 0.01
B34: 255 | C34: 28 | D34: 2.95 | N34: 255 | O34: 150 | P34: 0.01
B35: 255 | C35: 30 | D35: 2.95 | N35: 255 | O35: 156 | P35: 0.2
B36: 255 | C36: 30 | D36: 2.95 | N36: 255 | O36: 157 | P36: 0.17
B37: 255 | C37: 23 | D37: 2.95 | N37: 255 | O37: 159 | P37: 0.18
B38: 255 | C38: 36 | D38: 2.95 | N38: 255 | O38: 160 | P38: 0.33
B39: 255 | C39: 37 | D39: 2.86 | N39: 255 | O39: 170 | P39: 0.63
B40: 255 | C40: 70 | D40: 2.86 | N40: 255 | O40: 180 | P40: 0.87
B41: 255 | C41: 100 | D41: 2.86 | N41: 255 | O41: 190 | P41: 1.2
B42: 255 | C42: 150 | D42: 2.86 | N42: 255 | O42: 200 | P42: 1.36
B43: 255 | C43: 170 | D43: 2.92 | N43: 255 | O43: 210 | P43: 1.53
B44: 255 | C44: 175 | D44: 2.94 | N44: 255 | O44: 220 | P44: 1.73
B45: 255 | C45: 178 | D45: 2.95 | N45: 255 | O45: 230 | P45: 1.85
B46: 255 | C46: 180 | D46: 2.95 | N46: 255 | O46: 240 | P46: 1.96
B47: 255 | C47: 185 | D47: 2.97 | N47: 255 | O47: 245 | P47: 2.03
B48: 255 | C48: 190 | D48: 2.98 | N48: 255 | O48: 246 | P48: 2.03
B49: 255 | C49: 200 | D49: 2.99 | N49: 255 | O49: 247 | P49: 2.03
B50: 255 | C50: 220 | D50: 3.03 | N50: 255 | O50: 248 | P50: 2.03
B51: 255 | C51: 230 | D51: 3.04 | N51: 255 | O51: 249 | P51: 2.07
B52: 255 | C52: 240 | D52: 3.05 | N52: 255 | O52: 250 | P52: 2.07
B53: 255 | C53: 250 | D53: 3.07 | N53: 255 | O53: 251 | P53: 2.07
B54: 255 | C54: 252 | D54: 3.07 | N54: 255 | O54: 252 | P54: 2.08
B55: 255 | C55: 253 | D55: 3.07 | N55: 255 | O55: 253 | P55: 2.12
B56: 255 | C56: 254 | D56: 3.07 | N56: 255 | O56: 254 | P56: 2.12
B57: 255 | C57: 255 | D57: 3.07 | N57: 255 | O57: 255 | P57: 2.12
A59: Brightness 1 | B59: blue | C59: red+green | D59: blue V | M59: Brightness 255 | N59: blue | O59: red+green | P59: blue V
B60: 255 | C60: 0 | D60: 2.95 | N60: 255 | O60: 0 | P60: 0.01
B61: 255 | C61: 1 | D61: 2.95 | N61: 255 | O61: 10 | P61: 0.01
B62: 255 | C62: 20 | D62: 2.95 | N62: 255 | O62: 20 | P62: 0.01
B63: 255 | C63: 21 | D63: 2.95 | N63: 255 | O63: 30 | P63: 0.01
B64: 255 | C64: 31 | D64: 2.95 | N64: 255 | O64: 32 | P64: 0.01
B65: 255 | C65: 32 | D65: 2.86 | N65: 255 | O65: 34 | P65: 0.01
B66: 255 | C66: 36 | D66: 2.86 | N66: 255 | O66: 36 | P66: 0.01
B67: 255 | C67: 37 | D67: 2.86 | N67: 255 | O67: 37 | P67: 0.01
B68: 255 | C68: 38 | D68: 2.86 | N68: 255 | O68: 38 | P68: 0.01
B69: 255 | C69: 40 | D69: 2.86 | N69: 255 | O69: 40 | P69: 0.01
B70: 255 | C70: 50 | D70: 2.86 | N70: 255 | O70: 100 | P70: 0.01
B71: 255 | C71: 100 | D71: 2.86 | N71: 255 | O71: 140 | P71: 0.01
B72: 255 | C72: 120 | D72: 2.86 | N72: 255 | O72: 150 | P72: 0.01
B73: 255 | C73: 130 | D73: 2.86 | N73: 255 | O73: 151 | P73: 0.01
B74: 255 | C74: 140 | D74: 2.86 | N74: 255 | O74: 152 | P74: 0.15
B75: 255 | C75: 150 | D75: 2.86 | N75: 255 | O75: 157 | P75: 0.33
B76: 255 | C76: 152 | D76: 2.87 | N76: 255 | O76: 159 | P76: 0.33
B77: 255 | C77: 155 | D77: 2.88 | N77: 255 | O77: 160 | P77: 0.4
B78: 255 | C78: 160 | D78: 2.9 | N78: 255 | O78: 170 | P78: 0.73
B79: 255 | C79: 170 | D79: 2.93 | N79: 255 | O79: 180 | P79: 1.05
B80: 255 | C80: 200 | D80: 3 | N80: 255 | O80: 190 | P80: 1.27
B81: 255 | C81: 210 | D81: 3.02 | N81: 255 | O81: 200 | P81: 1.42
B82: 255 | C82: 220 | D82: 3.03 | N82: 255 | O82: 210 | P82: 1.61
B83: 255 | C83: 230 | D83: 3.05 | N83: 255 | O83: 220 | P83: 1.77
B84: 255 | C84: 240 | D84: 3.06 | N84: 255 | O84: 230 | P84: 1.88
B85: 255 | C85: 250 | D85: 3.07 | N85: 255 | O85: 240 | P85: 2
B86: 255 | C86: 255 | D86: 3.07 | N86: 255 | O86: 255 | P86: 2.15
A88: Brightness 1 | B88: blue | C88: Red 255+green | D88: blue V
B89: 255 | C89: 0 | D89: 2.95
B90: 255 | C90: 1 | D90: 2.86
B91: 255 | C91: 20 | D91: 2.86
B92: 255 | C92: 21 | D92: 2.86
B93: 255 | C93: 31 | D93: 2.86
B94: 255 | C94: 32 | D94: 2.86
B95: 255 | C95: 36 | D95: 2.86
B96: 255 | C96: 37 | D96: 2.86
B97: 255 | C97: 38 | D97: 2.86
B98: 255 | C98: 40 | D98: 2.86
B99: 255 | C99: 50 | D99: 2.86
B100: 255 | C100: 100 | D100: 2.86
B101: 255 | C101: 120 | D101: 2.87
B102: 255 | C102: 130 | D102: 2.87
B103: 255 | C103: 140 | D103: 2.87
B104: 255 | C104: 150 | D104: 2.89
B105: 255 | C105: 155 | D105: 2.9
B106: 255 | C106: 160 | D106: 2.92
B107: 255 | C107: 170 | D107: 2.95
B108: 255 | C108: 180 | D108: 2.97
B109: 255 | C109: 200 | D109: 3
B110: 255 | C110: 210 | D110: 3.02
B111: 255 | C111: 220 | D111: 3.04
B112: 255 | C112: 230 | D112: 3.05
B113: 255 | C113: 240 | D113: 3.06
B114: 255 | C114: 250 | D114: 3.07
B115: 255 | C115: 255 | D115: 3.08

Sheet RGB rules
A1: 100% pwm level = LED off
A2: 0% pwm level = LED at 100%
A3: So the pwm level is inverse to the LED level.
A4: For any RGB combination, the pwm levels change linearly with the brightness (so the circuitry takes care of the brightness curve)
A5: To find a specific brightness RGB config, we can determine the brightness = 1 levels, and the brightness = 255 levels, and then interpolate linearly to the required brightness
A7: At brightness = 1, the minimum pwm level for any LED is 87.3
A8: At brightness = 255, the minimum pwm level for any LED is 0.00
A9: The change of the minimum pwn level is linear
A10: Function: Lmin = 87.6437 – 0.343701 * brightness
A14: Single color R, G or B
A15: Brightness 1 – 255 corresponds to pwm levels 90% - 0%
A16: The other two colors are at 100% (i.e. fully dimmed)
A19: RGB white
A20: With R=255, G=255, B=255, the R:G:B ratio is about 1.00:2.10:0.78
A21: At brightness = 1, the green channel is the one at 87.3
A23: Green
A24: if green == 0
B25: G1= 100 | G25: G255= 100
A26: If green > 0 and < 152
B27: G1 = -0.000348968*green² – 0.00095174*green + 95.456
A28: if green >= 152
B29: G1 = 87.3 | G29: G255 = 0
A33: Okay, conclusion: making this 100% compatible with the original device is going to be really hard work.
A34: But the RGB mode is already very functional when simply scaling RGB GPIO outputs linearly with the required brightness.
A35: Only the RGB white light is a bit on the red side, so that needs fixing.
A36: That is what I will do: use simple scaling and correct the white
H325: Gdc =-1/2850*G² + 95.2

Sheet White light
A1: Transition brightness=255, between highest and lowest temperature | I1: Transition brightness=255, between 300 (mid white) and lowest temperature
B2: 3000kHz | C2: 3000kHz | D2: 3000kHz | E2: 10kHz | J2: 3000kHz | K2: 3000kHz | L2: 3000kHz | M2: 10kHz
A3: temperature | B3: red | C3: green | D3: blue | E3: white | I3: temperature | J3: red | K3: green | L3: blue | M3: white
A4: 588 | B4: 0 | C4: 0.344 | D4: 1 | E4: 0.067 | I4: 300 | J4: 0.746 | K4: 1 | L4: 0.953 | M4: 0.9
A5: 153 | B5: 0.188 | C5: 0.01 | D5: 0.188 | E5: 0.335 | I5: 153 | J5: 1 | K5: 0.01 | L5: 0.188 | M5: 0.35
A29: 100% bright | B29: 3kHz pwm | C29: 3kHz pwm | D29: 3kHz pwm | E29: 10kHz pwm
A30: temperature | B30: red | C30: green | D30: blue | E30: white
A31: 588 | B31: 0 | C31: 0.344 | D31: 1 | E31: 0.068
A32: 501 | B32: 0 | C32: 0.344 | D32: 1 | E32: 0.068
A33: 500 | B33: 0 | C33: 0.237 | D33: 1 | E33: 0.093
A34: 455 | B34: 0 | C34: 0.238 | D34: 1 | E34: 0.093
A35: 454 | B35: 0 | C35: 0.186 | D35: 1 | E35: 0.12
A36: 417 | B36: 0 | C36: 0.186 | D36: 1 | E36: 0.12
A37: 416 | B37: 0 | C37: 0.149 | D37: 1 | E37: 0.167
A38: 371 | B38: 0 | C38: 0.149 | D38: 1 | E38: 0.167
A39: 370 | B39: 0 | C39: 0.135 | D39: 1 | E39: 0.325
A40: 334 | B40: 0 | C40: 0.135 | D40: 1 | E40: 0.325
A41: 333 | B41: 0.097 | C41: 0.314 | D41: 1 | E41: 0.74
A42: 313 | B42: 0.097 | C42: 0.314 | D42: 1 | E42: 0.74
A43: 312 | B43: 0.745 | C43: 1 | D43: 0.953 | E43: 0.905
A44: 295 | B44: 0.746 | C44: 1 | D44: 0.953 | E44: 0.905
A45: 294 | B45: 1 | C45: 1 | D45: 1 | E45: 1
A46: 251 | B46: 1 | C46: 1 | D46: 1 | E46: 1
A47: 250 | B47: 1 | C47: 0.267 | D47: 0.485 | E47: 0.765
A48: 223 | B48: 1 | C48: 0.267 | D48: 0.485 | E48: 0.765
A49: 222 | B49: 1 | C49: 0 | D49: 0.355 | E49: 0.608
A50: 201 | B50: 1 | C50: 0 | D50: 0.355 | E50: 0.61
A51: 200 | B51: 1 | C51: 0 | D51: 0.282 | E51: 0.488
A52: 182 | B52: 1 | C52: 0 | D52: 0.281 | E52: 0.49
A53: 181 | B53: 1 | C53: 0 | D53: 0.313 | E53: 0.393
A54: 173 | B54: 1 | C54: 0 | D54: 0.313 | E54: 0.39
A55: 172 | B55: 1 | C55: 0 | D55: 0.18 | E55: 0.422
A56: 167 | B56: 1 | C56: 0 | D56: 0.18 | E56: 0.422
A57: 166 | B57: 1 | C57: 0 | D57: 0.218 | E57: 0.368
A58: 154 | B58: 1 | C58: 0 | D58: 0.218 | E58: 0.368
A59: 153 | B59: 1 | C59: 0 | D59: 0.187 | E59: 0.335
A63: 1% bright | B63: 3kHz pwm | C63: 3kHz pwm | D63: 3kHz pwm | E63: 10kHz pwm
A64: temperature | B64: red | C64: green | D64: blue | E64: white
A65: 588 | B65: 0.873 | C65: 0.907 | D65: 1 | E65: 0.063
A66: 501 | B66: 0.873 | C66: 0.907 | D66: 1 | E66: 0.062
A67: 500 | B67: 0.873 | C67: 0.896 | D67: 1 | E67: 0.063
A68: 455 | B68: 0.873 | C68: 0.896 | D68: 1 | E68: 0.063
A69: 454 | B69: 0.872 | C69: 0.891 | D69: 1 | E69: 0.0675
A70: 417 | B70: 0.873 | C70: 0.891 | D70: 1 | E70: 0.0675
A71: 416 | B71: 0.873 | C71: 0.888 | D71: 1 | E71: 0.07
A72: 371 | B72: 0.873 | C72: 0.888 | D72: 1 | E72: 0.07
A73: 370 | B73: 0.873 | C73: 0.887 | D73: 1 | E73: 0.088
A74: 334 | B74: 0.873 | C74: 0.887 | D74: 1 | E74: 0.088
A75: 333 | B75: 0.882 | C75: 0.904 | D75: 1 | E75: 0.128
A76: 313 | B76: 0.882 | C76: 0.904 | D76: 1 | E76: 0.128
A77: 312 | B77: 0.947 | C77: 1 | D77: 0.968 | E77: 0.145
A78: 295 | B78: 0.947 | C78: 1 | D78: 0.968 | E78: 0.145
A79: 294 | B79: 0.999 | C79: 1 | D79: 1 | E79: 0.154
A80: 251 | B80: 0.999 | C80: 1 | D80: 1 | E80: 0.155
A81: 250 | B81: 1 | C81: 0.899 | D81: 0.921 | E81: 0.13
A82: 223 | B82: 1 | C82: 0.899 | D82: 0.921 | E82: 0.13
A83: 222 | B83: 1 | C83: 0.873 | D83: 0.908 | E83: 0.115
A84: 201 | B84: 1 | C84: 0.873 | D84: 0.908 | E84: 0.115
A85: 200 | B85: 1 | C85: 0.873 | D85: 0.901 | E85: 0.103
A86: 182 | B86: 1 | C86: 0.872 | D86: 0.901 | E86: 0.103
A87: 181 | B87: 0.999 | C87: 0.872 | D87: 0.904 | E87: 0.093
A88: 173 | B88: 0.999 | C88: 0.872 | D88: 0.904 | E88: 0.095
A89: 172 | B89: 1 | C89: 0.873 | D89: 0.891 | E89: 0.098
A90: 167 | B90: 1 | C90: 0.873 | D90: 0.891 | E90: 0.098
A91: 166 | B91: 1 | C91: 0.873 | D91: 0.895 | E91: 0.09
A92: 154 | B92: 1 | C92: 0.873 | D92: 0.894 | E92: 0.09
A93: 153 | B93: 1 | C93: 0.873 | D93: 0.892 | E93: 0.088
A98: Tests to see if transition between 1% - 100% brightness is linear on all channels (spoiler: yes, it is)
A100: temperature | B100: brightness | C100: red | D100: green | E100: blue | F100: white | H100: temperature | I100: brightness | J100: red | K100: green | L100: blue | M100: white | O100: temperature | P100: brightness | Q100: red | R100: green | S100: blue | T100: white
A101: 588 | B101: 1 | C101: 0.873 | D101: 0.907 | E101: 1 | F101: 0.063 | H101: 153 | I101: 1 | J101: 1 | K101: 0.873 | L101: 0.892 | M101: 0.088 | O101: 275 | P101: 1 | Q101: 0.999 | R101: 1 | S101: 1 | T101: 0.154
B102: 25 | C102: 0.661 | D102: 0.771 | E102: 1 | F102: 0.063 | I102: 25 | J102: 1 | K102: 0.661 | L102: 0.721 | M102: 0.148 | P102: 25 | Q102: 1 | R102: 1 | S102: 1 | T102: 0.358
B103: 50 | C103: 0.441 | D103: 0.629 | E103: 1 | F103: 0.064 | I103: 50 | J103: 1 | K103: 0.44 | L103: 0.543 | M103: 0.21 | P103: 50 | Q103: 1 | R103: 1 | S103: 1 | T103: 0.573
B104: 75 | C104: 0.229 | D104: 0.492 | E104: 1 | F104: 0.065 | I104: 75 | J104: 1 | K104: 0.229 | L104: 0.372 | M104: 0.27 | P104: 75 | Q104: 1 | R104: 1 | S104: 1 | T104: 0.778
B105: 100 | C105: 0 | D105: 0.344 | E105: 1 | F105: 0.068 | I105: 100 | J105: 1 | K105: 0 | L105: 0.187 | M105: 0.335 | P105: 100 | Q105: 1 | R105: 1 | S105: 1 | T105: 1

Sheet Nightlight
A1: In night light mode, the follwing duty cycles are used (at 3 kHz)
A3: Red | B3: 0.96024006
A4: Green | B4: 1
A5: Blue | B5: 0.96942986
A6: White | B6: 0
